bitfinex-derivatives/quotes_SOLF0:USTF0_20241222
["timestamp","ask_amount","ask_price","bid_price","bid_amount"]
[1734863632426,2.6789,186.78,186.74,2.6794]
[1734863633330,2.6787,186.79,186.75,2.6792]
[1734863633826,2.68,186.81,186.73,2.68]
[1734863633827,2.6786,186.8,186.73,2.68]
[1734863634026,2.6786,186.8,186.76,2.6791]
[1734863635027,13.97567257,186.83,186.74,1.5651]
[1734863635231,13.97567257,186.83,186.74,4.2444]
[1734863635433,13.97567257,186.83,186.75,5.08351203]
[1734863635733,2.6788,186.79,186.74,4.2444]
[1734863637735,13.97567257,186.83,186.74,1.5651]
[1734863638334,2.6785,186.81,186.74,1.5651]
[1734863638532,13.97567257,186.83,186.74,1.5651]
[1734863638939,2.6791,186.77,186.74,1.5651]
[1734863639239,13.97567257,186.83,186.74,4.2445]
[1734863639432,13.97567257,186.83,186.74,1.5651]
[1734863639629,2.6788,186.78,186.74,1.5651]
[1734863640637,2.679,186.77,186.74,1.5651]
[1734863640932,13.97567257,186.83,186.74,1.5651]
[1734863641238,13.97567257,186.83,186.7,2.68]
[1734863641539,13.97567257,186.83,186.71,5.07822917]
[1734863642134,2.6792,186.76,186.72,5.07822917]
[1734863642335,2.6792,186.76,186.7,2.68]
[1734863642532,2.6792,186.76,186.71,5.08168503]
[1734863642837,2.6792,186.76,186.7,2.68]
[1734863643134,16.65567257,186.83,186.7,2.68]
[1734863643735,2.6788,186.79,186.75,2.6791]
[1734863643937,13.97567257,186.83,186.75,2.6791]
[1734863644436,2.6788,186.79,186.75,2.6791]
[1734863646033,2.68,186.82,186.75,2.6791]
[1734863646334,2.6788,186.78,186.75,2.6791]
[1734863647435,2.68,186.82,186.73,2.6794]
[1734863648130,8.6776792,186.81,186.73,2.6794]
[1734863648634,8.6776792,186.81,186.7,2.68]
[1734863649038,8.6776792,186.81,186.71,5.07833776]
[1734863649343,2.6791,186.77,186.73,2.6795]
[1734863651541,8.6776792,186.81,186.73,2.6795]
[1734863651843,8.6776792,186.81,186.69,10.3795792]
[1734863652031,8.6776792,186.78,186.69,1.7019]
[1734863652233,2.66,186.77,186.7,5.07480818]
[1734863652434,2.66,186.77,186.68,2.6802]
[1734863652639,2.66,186.77,186.67,1.6091]
[1734863652839,2.6798,186.72,186.69,5.07643908]
[1734863653041,2.66,186.77,186.67,1.6091]
[1734863653243,2.6799,186.71,186.67,1.6091]
[1734863653443,8.6776792,186.75,186.68,5.07662267]
[1734863653641,8.6776792,186.75,186.64,1.7332]
[1734863653945,8.6776792,186.75,186.66,2.6805]
[1734863653946,2.6801,186.7,186.66,2.6805]
[1734863654240,8.6776792,186.75,186.64,1.7332]
[1734863654241,2.66,186.72,186.67,5.0766822]
[1734863654446,2.6802,186.69,186.67,5.0766822]
[1734863654646,2.66,186.72,186.64,1.7332]
[1734863655047,2.66,186.75,186.65,5.08075191]
[1734863655245,2.66,186.75,186.66,11.3376792]
[1734863655545,2.6792,186.76,186.71,2.6797]
[1734863655846,2.66,186.78,186.71,2.6797]
[1734863656047,2.66,186.78,186.72,5.08106697]
[1734863656248,2.66,186.78,186.71,2.6797]
[1734863656845,2.66,186.78,186.72,5.08274069]
[1734863657151,2.66,186.78,186.71,2.6797]
[1734863657350,2.6793,186.75,186.7,2.6799]
[1734863657748,2.6793,186.75,186.71,5.08738314]
[1734863658053,2.6793,186.75,186.7,2.6799]
[1734863658054,2.6793,186.75,186.72,5.08738314]
[1734863658350,2.6793,186.75,186.73,5.08738314]
[1734863658741,2.6793,186.75,186.7,2.6799]
[1734863659050,2.6794,186.74,186.71,5.08847821]
[1734863659248,2.6794,186.74,186.72,5.08847821]
[1734863659547,2.6794,186.74,186.73,5.08847821]
[1734863660149,2.6792,186.76,186.73,5.08847821]
[1734863660349,2.66,186.78,186.74,5.08847821]
[1734863660750,2.6795,186.74,186.69,2.68]
[1734863661247,2.6795,186.74,186.7,5.09758944]
[1734863661654,2.6795,186.74,186.71,5.09758944]
[1734863661853,2.6795,186.74,186.72,5.09758944]
[1734863662153,2.6795,186.74,186.73,5.09758944]
[1734863670864,2.6804,186.67,186.66,13.21689882]
[1734863671165,2.6804,186.67,186.65,13.21689882]
[1734863672169,2.6804,186.67,186.63,2.681]
[1734863673066,8.6776792,186.7,186.62,58.95870096]
[1734863673265,2.6808,186.65,186.62,58.95870096]
[1734863673468,8.6776792,186.7,186.62,13.21689882]
[1734863673969,2.681,186.63,186.62,13.21689882]
[1734863674371,2.681,186.63,186.58,73.80619978]
[1734863674864,8.6776792,186.64,186.58,72.17559978]
[1734863676070,8.6776792,186.64,186.54,8.6776792]
[1734863676270,2.6811,186.62,186.57,2.6817]
[1734863677571,2.681,186.63,186.58,2.6817]
[1734863678271,2.6811,186.62,186.57,2.6818]
[1734863680768,8.6776792,186.64,186.57,2.6818]
[1734863680973,8.6776792,186.64,186.53,1.6109]
[1734863681170,8.6776792,186.64,186.52,5.9574]
[1734863681369,8.6776792,186.64,186.52,3.2974]
[1734863681672,8.6776792,186.61,186.52,3.2974]
[1734863681973,8.6776792,186.61,186.51,76.96344127]
[1734863681974,8.6776792,186.58,186.51,76.96344127]
[1734863682169,11.3376792,186.58,186.51,76.96344127]
[1734863682876,11.3376792,186.58,186.47,164.15900592]
[1734863682877,11.3376792,186.58,186.47,3.3087]
[1734863683166,2.6824,186.54,186.48,2.6831]
[1734863683375,8.6776792,186.63,186.5,8.6776792]
[1734863683572,8.6776792,186.63,186.53,8.6776792]
[1734863683775,2.6813,186.61,186.56,2.6819]
[1734863686174,8.6776792,186.63,186.56,2.6819]
[1734863686368,2.6813,186.61,186.56,2.6819]
[1734863686767,2.6815,186.6,186.56,2.6819]
[1734863686969,2.6815,186.6,186.55,2.6821]
[1734863687176,8.6776792,186.63,186.54,1.7009]
[1734863687377,2.6818,186.58,186.54,1.7009]
[1734863688477,2.6818,186.58,186.54,4.3831]
[1734863692581,2.6818,186.58,186.55,2.6821]
[1734863694679,2.6818,186.58,186.54,4.3831]
[1734863701986,2.6818,186.58,186.48,58.95870096]
[1734863701987,8.6776792,186.58,186.48,58.95870096]
[1734863702189,8.6776792,186.58,186.48,63.26090096]
[1734863702583,2.6821,186.55,186.48,63.26090096]
[1734863702788,2.6821,186.55,186.48,4.3022]
[1734863702981,2.6821,186.55,186.52,2.6825]
[1734863704681,8.6776792,186.58,186.48,4.3022]
[1734863704888,2.6823,186.54,186.48,4.3022]
[1734863705390,8.6776792,186.51,186.46,58.95870096]
[1734863705991,11.3608792,186.48,186.46,58.95870096]
[1734863706788,8.6776792,186.48,186.46,58.95870096]
[1734863706991,2.66,186.54,186.46,58.95870096]
[1734863707490,14.0199792,186.54,186.49,2.6828]
[1734863707684,11.3376792,186.54,186.49,2.6828]
[1734863707886,11.3376792,186.54,186.42,67.63638016]
[1734863707887,2.6827,186.52,186.47,2.6833]
[1734863708189,8.6776792,186.51,186.42,58.95870096]
[1734863708489,8.6776792,186.51,186.45,58.95870096]
[1734863708490,2.6831,186.49,186.45,58.95870096]
[1734863709087,8.6776792,186.51,186.45,58.95870096]
[1734863709287,2.6831,186.48,186.45,58.95870096]
[1734863709692,2.6831,186.48,186.44,2.6837]
[1734863710391,2.683,186.49,186.45,2.6835]
[1734863710583,8.6776792,186.51,186.42,72.17559978]
[1734863710982,2.6834,186.46,186.43,2.6837]
[1734863711185,2.6834,186.46,186.41,75.51149978]
[1734863712191,2.6834,186.46,186.42,2.6839]
[1734863712392,2.6834,186.46,186.41,3.3359]
[1734863713183,2.6833,186.47,186.43,2.6838]
[1734863713588,8.6776792,186.51,186.41,3.3359]
[1734863713789,11.3604792,186.51,186.44,2.6837]
[1734863714096,8.6776792,186.51,186.41,3.3359]
[1734863714394,2.6829,186.5,186.41,3.3359]
[1734863714592,2.6829,186.5,186.42,58.95870096]
[1734863714795,2.6829,186.5,186.46,2.6833]
[1734863716494,2.6824,186.53,186.48,2.683]
[1734863716692,11.3376792,186.57,186.45,11.3376792]
[1734863716893,8.6776792,186.57,186.45,11.3376792]
[1734863717187,2.6821,186.56,186.45,11.3376792]
[1734863717687,11.3595792,186.57,186.45,11.3376792]
[1734863717896,8.6776792,186.6,186.48,8.6776792]
[1734863718086,1.693,186.64,186.49,4.7903]
[1734863718285,2.6811,186.62,186.57,2.6817]
[1734863718485,2.6811,186.62,186.51,8.6776792]
[1734863718696,2.66,186.61,186.51,8.6776792]
[1734863718892,2.6818,186.58,186.5,2.66]
[1734863719292,2.6818,186.58,186.53,2.6823]
[1734863719890,2.6816,186.59,186.55,2.6821]
[1734863720195,2.66,186.61,186.55,2.6821]
[1734863720794,2.6814,186.6,186.55,2.6821]
[1734863722595,2.6814,186.6,186.56,2.682]
[1734863723293,2.6803,186.68,186.63,2.6809]
[1734863723596,16.57300645,186.7,186.57,3.2642]
[1734863723895,2.6805,186.66,186.62,2.6811]
[1734863724095,2.66,186.7,186.57,3.2642]
[1734863724096,16.85147804,186.69,186.57,3.2642]
[1734863725491,2.6807,186.66,186.61,2.6812]
[1734863726399,16.85147804,186.69,186.63,2.6809]
[1734863726400,2.6803,186.68,186.63,2.6809]
[1734863727199,19.53157804,186.69,186.64,2.6808]
[1734863727600,5.61857159,186.69,186.57,4.8866]
[1734863728196,2.93847159,186.69,186.57,4.8866]
[1734863728403,2.93847159,186.69,186.65,2.6806]
[1734863729603,5.61867159,186.69,186.65,2.6806]
[1734863731299,2.93847159,186.69,186.61,2.66]
[1734863731504,2.93847159,186.69,186.66,2.6805]
[1734863732107,2.66,186.71,186.68,2.6802]
[1734863732303,2.6798,186.72,186.68,2.6802]
[1734863733608,2.6795,186.74,186.69,2.68]
[1734863734904,16.57300645,186.75,186.69,2.68]
[1734863735207,2.6795,186.73,186.69,2.68]
[1734863740016,11.36389088,186.73,186.69,2.68]
[1734863740611,2.6797,186.72,186.61,11.34439088]
[1734863741313,2.6799,186.71,186.61,8.68439088]
[1734863741518,8.68439088,186.7,186.62,2.66]
[1734863741720,8.68439088,186.73,186.63,2.66]
[1734863742419,2.68,186.7,186.67,2.6803]
[1734863743021,8.68439088,186.68,186.57,4.8866]
[1734863743220,8.68439088,186.65,186.58,2.66]
[1734863743420,8.68439088,186.65,186.57,4.8866]
[1734863743618,8.68439088,186.65,186.57,7.5466]
[1734863744119,2.681,186.63,186.59,2.6815]
[1734863744316,8.68439088,186.65,186.59,2.6815]
[1734863744516,8.68439088,186.65,186.57,3.2642]
[1734863744718,2.6812,186.62,186.58,2.6817]
[1734863745014,8.68439088,186.62,186.53,76.95678656]
[1734863745218,8.68439088,186.62,186.52,1.7256]
[1734863745219,2.682,186.57,186.52,2.6825]
[1734863745419,8.68439088,186.59,186.52,2.6825]
[1734863745919,2.6818,186.57,186.52,2.6825]
[1734863746920,2.682,186.56,186.52,2.6825]
[1734863747618,2.66,186.59,186.5,3.1651]
[1734863747825,2.6822,186.55,186.5,3.1651]
[1734863748022,13.91592947,186.58,186.43,58.95870096]
[1734863748321,2.6827,186.51,186.44,6.0806]
[1734863748723,2.6829,186.5,186.44,6.1042]
[1734863748917,2.66,186.54,186.42,63.31570096]
[1734863748918,13.91592947,186.52,186.42,61.61870096]
[1734863749121,13.91592947,186.52,186.42,58.95870096]
[1734863749320,13.91592947,186.52,186.42,61.64270096]
[1734863749519,13.91592947,186.52,186.42,2.684]
[1734863750021,2.6833,186.47,186.42,2.684]
[1734863750319,2.66,186.49,186.41,58.95870096]
[1734863750523,3.2855,186.6,186.42,13.91592947]
[1734863750721,2.66,186.59,186.45,13.91592947]
[1734863750916,2.66,186.59,186.46,4.2296]
[1734863751122,2.66,186.59,186.53,2.6824]
[1734863753928,2.66,186.59,186.48,1.6524]
[1734863754130,6.67274686,186.62,186.48,15.56832947]
[1734863754324,3.3237,186.74,186.51,13.91592947]
[1734863754518,2.6805,186.66,186.56,2.6818]
[1734863754725,5.3405,186.66,186.52,2.66]
[1734863755329,2.6805,186.66,186.52,2.66]
[1734863755631,5.3405,186.66,186.52,2.66]
[1734863755832,2.6805,186.66,186.52,2.66]
[1734863756222,2.6805,186.66,186.56,2.6819]
[1734863756427,2.6805,186.66,186.57,4.3382]
[1734863756828,2.6805,186.66,186.6,2.6812]
[1734863757430,2.66,186.67,186.63,2.6809]
[1734863757630,2.66,186.69,186.58,1.7339]
[1734863757834,2.66,186.69,186.58,3.3352]
[1734863758233,2.66,186.69,186.64,2.6807]
[1734863759433,5.3402,186.69,186.64,2.6807]
[1734863759931,5.3402,186.69,186.63,2.6809]
[1734863760938,5.3402,186.69,186.58,5.9952]
[1734863761137,5.3402,186.69,186.64,2.6808]
[1734863762338,16.59622947,186.68,186.62,2.681]
[1734863762535,2.66,186.69,186.58,5.9952]
[1734863762739,2.66,186.73,186.58,5.9952]
[1734863763236,2.6797,186.72,186.58,5.9952]
[1734863763432,2.66,186.73,186.58,5.9952]
[1734863763632,2.66,186.72,186.58,5.9952]
[1734863764034,2.6798,186.71,186.58,5.9952]
[1734863765145,2.679,186.77,186.63,13.91592947]
[1734863765344,114.6442883,186.79,186.64,2.66]
[1734863765642,2.6788,186.78,186.73,2.6795]
[1734863766443,2.6792,186.76,186.69,2.66]
[1734863767546,2.6792,186.76,186.71,2.6798]
[1734863768745,2.66,186.77,186.69,2.66]
[1734863768945,5.339,186.77,186.72,2.6797]
[1734863769248,2.66,186.77,186.69,2.66]
[1734863769453,2.66,186.77,186.74,2.6794]
[1734863770139,2.66,186.77,186.73,2.6795]
[1734863772755,2.6788,186.78,186.73,2.6795]
[1734863773756,113.0109883,186.79,186.75,2.6791]
[1734863774948,115.6896883,186.79,186.75,2.6791]
[1734863775149,113.0109883,186.79,186.7,1.6072]
[1734863775350,4.00919994,186.8,186.7,1.6072]
[1734863776455,2.679,186.77,186.7,1.6072]
[1734863776958,2.679,186.77,186.72,2.6795]
[1734863777656,2.6794,186.74,186.67,1.7254]
[1734863777958,2.66,186.76,186.65,5.9016]
[1734863778256,2.66,186.76,186.65,3.2416]
[1734863779148,13.91592947,186.74,186.65,3.2416]
[1734863779550,2.6799,186.71,186.66,2.6804]
[1734863780046,13.91592947,186.74,186.65,3.2416]
[1734863780652,2.6795,186.73,186.68,2.6802]
[1734863781354,2.6795,186.73,186.69,2.6801]
[1734863781554,2.6794,186.74,186.65,3.2416]
[1734863782754,2.66,186.76,186.69,2.68]
[1734863782960,2.6795,186.73,186.69,2.68]
[1734863784561,2.66,186.76,186.65,3.2416]
[1734863784762,13.91592947,186.74,186.65,3.2416]
[1734863785258,13.91592947,186.74,186.66,2.6805]
[1734863785460,13.91592947,186.74,186.65,3.2416]
[1734863785860,13.91592947,186.74,186.65,1.6634]
[1734863786060,2.6802,186.69,186.65,4.3441]
[1734863786364,13.91592947,186.68,186.59,58.95870096]
[1734863786660,2.681,186.63,186.59,61.64020096]
[1734863786860,2.66,186.66,186.59,61.64020096]
[1734863787060,2.6808,186.64,186.59,58.95870096]
[1734863787261,2.66,186.66,186.61,2.6812]
[1734863788273,1.5735,186.68,186.55,78.96423043]
[1734863788563,2.6802,186.69,186.63,2.6808]
[1734863788756,2.66,186.7,186.63,2.6808]
[1734863788961,2.6805,186.67,186.62,2.6811]
[1734863790264,2.66,186.7,186.6,2.66]
[1734863790465,2.6808,186.64,186.6,2.66]
[1734863790663,2.6808,186.64,186.57,2.66]
[1734863790859,2.6805,186.67,186.57,2.66]
[1734863792368,2.6805,186.67,186.58,58.95870096]
[1734863792867,2.6805,186.67,186.63,2.6808]
[1734863793465,2.6805,186.67,186.58,58.95870096]
[1734863793666,2.6805,186.67,186.64,2.6807]
[1734863793966,2.6805,186.67,186.58,58.95870096]
[1734863794770,2.6805,186.67,186.59,58.95870096]
[1734863795470,2.6805,186.67,186.63,2.6808]
[1734863796576,2.6805,186.66,186.63,2.6808]
[1734863796870,2.6805,186.66,186.62,2.681]
[1734863798074,2.66,186.7,186.58,58.95870096]
[1734863798075,2.6803,186.67,186.63,2.6808]
[1734863799870,13.91592947,186.69,186.58,58.95870096]
[1734863800577,13.91592947,186.66,186.58,58.95870096]
[1734863800979,13.91592947,186.69,186.58,58.95870096]
[1734863801176,2.6803,186.67,186.58,58.95870096]
[1734863801379,13.91592947,186.69,186.56,58.95870096]
[1734863801677,13.91592947,186.69,186.63,2.6808]
[1734863802277,2.66,186.7,186.64,2.6807]
[1734863802981,2.6803,186.68,186.64,2.6807]
[1734863803575,2.66,186.7,186.6,2.66]
[1734863803776,2.6805,186.67,186.63,2.6809]
[1734863804377,2.66,186.7,186.63,2.6809]
[1734863804580,2.66,186.7,186.6,2.66]
[1734863805379,2.66,186.7,186.61,2.6812]
[1734863805683,2.66,186.69,186.61,2.6812]
[1734863806178,2.6807,186.66,186.61,2.6812]
[1734863806380,2.6807,186.66,186.62,2.6811]
[1734863806886,2.6807,186.65,186.62,2.6811]
[1734863807980,16.57592947,186.69,186.6,2.6814]
[1734863808186,2.6809,186.64,186.6,2.6814]
[1734863808680,16.57592947,186.69,186.6,2.6814]
[1734863808886,13.91592947,186.66,186.55,62.38830096]
[1734863809087,1.658,186.65,186.55,62.38830096]
[1734863809282,2.66,186.64,186.55,62.38830096]
[1734863809584,2.6813,186.62,186.58,2.6817]
[1734863810282,1.658,186.65,186.55,3.4296]
[1734863810984,2.6809,186.64,186.61,2.6813]
[1734863812088,2.6809,186.64,186.6,2.6814]
[1734863812888,2.6812,186.62,186.58,2.6816]
[1734863814288,2.6813,186.61,186.58,2.6816]
[1734863815991,2.6813,186.61,186.55,62.38830096]
[1734863816992,2.6813,186.61,186.55,75.60519978]
[1734863817484,2.6813,186.61,186.58,2.6817]
[1734863818893,2.6818,186.57,186.56,72.17559978]
[1734863819089,5.3418,186.57,186.56,72.17559978]
[1734863820099,2.6821,186.55,186.5,2.6827]
[1734863820899,2.6821,186.55,186.51,2.6827]
[1734863821291,2.6819,186.57,186.5,2.66]
[1734863821897,2.6819,186.57,186.52,2.6824]
[1734863822493,2.682,186.56,186.52,2.6824]
[1734863822792,2.66,186.6,186.51,2.6827]
[1734863822987,2.66,186.6,186.49,72.17559978]
[1734863823188,2.66,186.6,186.49,61.64160096]
[1734863823394,2.66,186.6,186.48,14.91799882]
[1734863823395,2.66,186.6,186.48,73.87669978]
[1734863823797,2.6823,186.54,186.49,2.683]
[1734863824495,2.6825,186.53,186.48,4.3842]
[1734863824694,2.6825,186.53,186.48,1.7011]
[1734863824891,2.6825,186.53,186.49,2.6829]
[1734863825193,2.6823,186.54,186.48,1.7011]
[1734863825988,2.6823,186.54,186.5,2.6828]
[1734863827398,2.66,186.58,186.48,1.7011]
[1734863827399,2.6824,186.53,186.48,4.3841]
[1734863827790,2.6824,186.53,186.48,1.7011]
[1734863829396,2.6824,186.53,186.49,2.6829]
[1734863829593,2.66,186.58,186.49,2.6829]
[1734863829800,2.6826,186.52,186.48,1.7011]
[1734863829995,2.66,186.58,186.48,1.7011]
[1734863830400,2.6825,186.53,186.48,1.7011]
[1734863830602,2.6825,186.53,186.49,2.683]
[1734863831303,2.6821,186.55,186.48,1.7011]
[1734863832006,2.6817,186.59,186.48,1.7011]
[1734863832305,2.66,186.62,186.48,1.7011]
[1734863832901,2.6825,186.53,186.49,2.6829]
[1734863833205,2.66,186.56,186.49,2.6829]
[1734863833504,2.6824,186.53,186.49,2.6829]
[1734863837411,2.66,186.56,186.5,2.6828]
[1734863838206,2.6824,186.54,186.5,2.6828]
[1734863842511,2.6824,186.53,186.5,2.6828]
[1734863843708,1.6732,186.64,186.48,1.7011]
[1734863843908,5.77298039,186.65,186.48,1.7011]
[1734863844103,2.6814,186.6,186.53,2.6824]
[1734863844307,2.6814,186.6,186.53,2.66]
[1734863845116,2.6814,186.6,186.56,2.6819]
[1734863848119,2.66,186.63,186.54,1.6874]
[1734863848314,2.6821,186.56,186.54,1.6874]
[1734863849620,2.6819,186.57,186.54,1.6874]
[1734863850120,2.6817,186.59,186.55,2.682]
[1734863850620,2.66,186.63,186.55,2.682]
[1734863850816,2.6817,186.58,186.55,2.682]
[1734863851019,4.11498039,186.65,186.54,1.6874]
[1734863851222,2.6809,186.64,186.55,3.2252]
[1734863851414,2.6809,186.64,186.56,2.66]
[1734863851723,4.11498039,186.65,186.59,2.6814]
[1734863852215,4.11498039,186.65,186.6,2.6814]
[1734863852719,1.7229,186.7,186.56,2.66]
[1734863853022,2.6805,186.67,186.62,2.6811]
[1734863853221,2.66,186.69,186.62,2.6811]
[1734863853615,2.6804,186.67,186.62,2.6811]
[1734863854325,2.6803,186.68,186.64,2.6808]
[1734863854723,1.7229,186.7,186.61,2.66]
[1734863854920,1.7229,186.7,186.62,1.6348]
[1734863855225,2.6801,186.69,186.65,2.6807]
[1734863855423,2.6801,186.69,186.62,1.6348]
[1734863855723,2.6801,186.69,186.62,3.204]
[1734863856224,2.6801,186.69,186.64,2.6807]
[1734863857724,2.66,186.72,186.64,2.6807]
[1734863857926,2.6803,186.68,186.64,2.6807]
[1734863859528,2.6805,186.67,186.63,2.681]
[1734863859821,2.66,186.72,186.62,3.204]
[1734863860324,2.6804,186.68,186.64,2.6808]
[1734863861425,2.66,186.72,186.62,3.204]
[1734863861621,2.6804,186.67,186.63,2.681]
[1734863861822,2.66,186.72,186.62,3.204]
[1734863862223,2.6801,186.69,186.64,2.6808]
[1734863862925,2.66,186.72,186.64,2.6808]
[1734863863126,2.66,186.72,186.63,2.681]
[1734863863625,2.6801,186.7,186.63,2.681]
[1734863863829,2.66,186.72,186.63,2.681]
[1734863864326,2.6805,186.67,186.63,2.681]
[1734863864528,2.66,186.72,186.62,3.204]
[1734863864829,2.66,186.72,186.64,2.6808]
[1734863867134,2.6804,186.68,186.64,2.6808]
[1734863869027,2.6804,186.67,186.62,3.204]
[1734863870431,2.6804,186.67,186.64,2.6808]
[1734863870628,2.6804,186.67,186.62,3.204]
[1734863871423,2.6804,186.67,186.63,2.6809]
[1734863871836,1.6218,186.76,186.62,3.204]
[1734863872028,2.64,186.82,186.63,1.5883]
[1734863872230,0.95262483,186.81,186.63,1.5883]
[1734863872437,2.679,186.77,186.63,1.5883]
[1734863872635,2.679,186.77,186.71,2.6797]
[1734863872835,2.64,186.8,186.7,2.64]
[1734863873033,2.6788,186.78,186.7,2.64]
[1734863873236,1.7297,186.83,186.7,2.64]
[1734863873438,2.6785,186.81,186.71,4.8576]
[1734863873838,2.6785,186.81,186.77,2.679]
[1734863874337,2.64,186.86,186.75,2.64]
[1734863874543,2.64,186.86,186.78,2.6788]
[1734863874943,2.6781,186.84,186.78,2.6788]
[1734863875247,2.6781,186.84,186.79,2.6787]
[1734863875748,112.97252254,186.87,186.75,2.64]
[1734863875944,2.6777,186.86,186.8,2.6785]
[1734863876342,2.6777,186.86,186.8,2.64]
[1734863876547,2.6777,186.86,186.81,2.6783]
[1734863877152,3.3629,186.93,186.8,2.64]
[1734863877654,2.6774,186.89,186.83,2.678]
[1734863877846,2.64,186.92,186.83,2.678]
[1734863878046,2.64,186.92,186.81,1.6739]
[1734863878352,2.6775,186.88,186.82,2.6782]
[1734863879653,2.64,186.92,186.82,2.6782]
[1734863879847,2.6775,186.87,186.82,2.6782]
[1734863880043,2.6775,186.87,186.81,4.3523]
[1734863880754,2.6773,186.89,186.81,1.6739]
[1734863881052,2.64,186.92,186.81,1.6739]
[1734863881455,2.64,186.92,186.81,4.3523]
[1734863882255,3.3629,186.93,186.81,4.3523]
[1734863882556,2.64,186.92,186.81,4.3523]
[1734863884558,2.6777,186.87,186.81,4.3523]
[1734863884858,2.64,186.92,186.81,4.3523]
[1734863885054,2.6777,186.86,186.81,4.3523]
[1734863886455,2.6775,186.88,186.82,2.6781]
[1734863886662,2.6775,186.88,186.81,1.6739]
[1734863886860,2.64,186.92,186.81,1.6739]
[1734863887062,2.6773,186.89,186.82,2.6782]
[1734863887255,2.64,186.92,186.81,1.6739]
[1734863887761,2.6776,186.87,186.81,4.3522]
[1734863887963,2.64,186.92,186.81,4.3522]
[1734863888158,2.6773,186.89,186.81,4.3522]
[1734863888460,2.64,186.92,186.81,1.6739]
[1734863889062,2.6775,186.88,186.83,2.678]
[1734863889258,3.3629,186.93,186.81,1.6739]
[1734863889259,1.7297,186.93,186.81,1.6739]
[1734863889452,1.7297,186.93,186.82,1.5744]
[1734863889653,2.6769,186.92,186.85,2.6778]
[1734863889858,2.6769,186.92,186.85,2.64]
[1734863890463,1.7297,186.93,186.85,2.64]
[1734863890762,1.7297,186.93,186.82,1.5744]
[1734863890965,1.657,186.92,186.81,4.3139]
[1734863891864,2.6773,186.89,186.81,6.9922]
[1734863892070,2.64,186.9,186.81,6.9922]
[1734863892872,2.6777,186.87,186.81,6.9922]
[1734863893570,2.64,186.9,186.81,6.9922]
[1734863893768,2.64,186.9,186.75,3.2992]
[1734863893969,2.64,186.9,186.77,2.64]
[1734863894262,2.6778,186.85,186.77,2.64]
[1734863895469,2.6778,186.85,186.8,2.6784]
[1734863896766,2.678,186.84,186.8,2.6784]
[1734863897568,2.64,186.89,186.74,76.8736312]
[1734863898071,2.64,186.89,186.73,2.64]
[1734863898569,0.95220824,186.88,186.73,2.64]
[1734863899370,0.95220824,186.88,186.75,2.6792]
[1734863900470,0.95220824,186.88,186.73,2.64]
[1734863900672,0.95220824,186.88,186.73,5.3194]
[1734863901563,5.3552,186.87,186.69,3.2149]
[1734863901870,0.95220824,186.86,186.69,1.5701]
[1734863902070,2.6795,186.74,186.69,1.5701]
[1734863903275,2.6793,186.75,186.71,2.6798]
[1734863903463,2.64,186.78,186.69,1.5701]
[1734863903862,2.6792,186.76,186.71,2.6798]
[1734863904374,2.64,186.78,186.69,1.5701]
[1734863904672,2.6793,186.75,186.7,2.6799]
[1734863907275,2.6795,186.74,186.69,4.2502]
[1734863908275,2.64,186.78,186.66,63.32120096]
[1734863908480,1.5817,186.77,186.66,63.32120096]
[1734863908772,2.68,186.71,186.66,7.0429]
[1734863909274,2.68,186.71,186.67,2.6804]
[1734863910181,2.6801,186.69,186.65,2.6806]